bitfinex/quotes_BTCUSD_20250530
["timestamp","ask_amount","ask_price","bid_price","bid_amount"]
[1748624352592,1.17987971,103810.0,103800.0,0.02894098]
[1748624352806,1.17887971,103810.0,103800.0,0.02894098]
[1748624353013,0.21492496,103810.0,103800.0,0.1158543]
[1748624353228,0.56552496,103810.0,103800.0,0.12480753]
[1748624353440,0.56552496,103810.0,103800.0,0.12480699]
[1748624353682,1.18417971,103810.0,103800.0,0.06012204]
[1748624353886,1.18417971,103810.0,103800.0,0.05116935]
[1748624354094,1.27669093,103810.0,103800.0,0.06012489]
[1748624354267,1.27665093,103810.0,103800.0,0.05116935]
[1748624354448,1.27665093,103810.0,103800.0,0.06012503]
[1748624354648,1.18413971,103810.0,103800.0,0.06012503]
[1748624355649,1.18413971,103810.0,103800.0,0.0289734]
[1748624355855,1.18413971,103810.0,103800.0,0.02897358]
[1748624356058,1.18413971,103810.0,103800.0,0.02899989]
[1748624356260,0.72129618,103810.0,103800.0,0.0289997]
[1748624356468,1.27665093,103810.0,103800.0,0.0289997]
[1748624357238,1.27665093,103810.0,103780.0,0.37341658]
[1748624357239,0.47466611,103790.0,103780.0,0.37341658]
[1748624357453,0.82206611,103790.0,103780.0,0.46976143]
[1748624358520,0.82206611,103790.0,103780.0,0.45522058]
[1748624359060,0.80701793,103790.0,103780.0,0.43734485]
[1748624359263,0.80701793,103790.0,103780.0,0.46784914]
[1748624359671,0.80689793,103790.0,103780.0,0.48238999]
[1748624359880,0.55924581,103790.0,103780.0,0.48238999]
[1748624360065,0.55924581,103790.0,103780.0,0.49769663]
[1748624360717,0.36654902,103790.0,103780.0,0.70004774]
[1748624360922,0.55924627,103790.0,103780.0,0.49769663]
[1748624361342,0.56880055,103790.0,103780.0,0.50733239]
[1748624361555,0.56654647,103790.0,103780.0,0.49769663]
[1748624362109,0.5761813,103790.0,103780.0,0.69041198]
[1748624362310,0.00963409,103790.0,103780.0,0.70968295]
[1748624362525,0.23123455,103790.0,103780.0,0.75041463]
[1748624362733,0.23123455,103790.0,103780.0,0.76005011]
[1748624362941,0.23123455,103790.0,103780.0,0.75041463]
[1748624363176,0.23123455,103790.0,103780.0,0.73510799]
[1748624363569,0.56868046,103790.0,103780.0,0.74474347]
[1748624364253,0.55904563,103790.0,103780.0,0.74474347]
[1748624364486,0.56868028,103790.0,103780.0,0.74474347]
[1748624364720,0.36634828,103790.0,103780.0,0.76401397]
[1748624364949,0.23123427,103790.0,103780.0,0.78697886]
[1748624365177,0.04817213,103790.0,103780.0,0.79661416]
[1748624365430,0.01717213,103790.0,103780.0,0.79661416]
[1748624365646,0.23877166,103790.0,103780.0,0.79661416]
[1748624365893,0.23877166,103790.0,103780.0,0.80624937]
[1748624365894,0.03644004,103790.0,103780.0,0.80624937]
[1748624366110,0.23877166,103790.0,103780.0,0.78697886]
[1748624366325,0.22913766,103790.0,103780.0,0.78697886]
[1748624367045,0.22913766,103790.0,103780.0,0.75437886]
[1748624367270,0.22913766,103790.0,103780.0,0.73510799]
[1748624367505,0.21950338,103790.0,103780.0,0.73510799]
[1748624367719,0.21950338,103790.0,103780.0,0.71834842]
[1748624368225,0.21950338,103790.0,103780.0,0.70871294]
[1748624368861,0.01717176,103790.0,103780.0,0.73761902]
[1748624369084,0.50916661,103800.0,103790.0,0.22650684]
[1748624369300,1.05827892,103800.0,103790.0,0.11039515]
[1748624369512,1.05827892,103800.0,103790.0,0.30309194]
[1748624369731,1.04864557,103800.0,103790.0,0.11039515]
[1748624369938,1.03901194,103800.0,103790.0,0.11039515]
[1748624370591,1.03901194,103800.0,103790.0,0.12575443]
[1748624370592,1.04001194,103800.0,103790.0,0.12575443]
[1748624370817,1.07021194,103800.0,103790.0,0.12575443]
[1748624371023,1.04001194,103800.0,103790.0,0.12575443]
[1748624371231,1.04101194,103800.0,103790.0,0.12575443]
[1748624372543,1.04081194,103800.0,103790.0,0.12575443]
[1748624372763,0.4919,103800.0,103790.0,0.37945489]
[1748624372975,0.50153316,103800.0,103790.0,0.74502979]
[1748624373183,0.51116642,103800.0,103790.0,0.74502979]
[1748624373410,0.51116642,103800.0,103790.0,0.74446979]
[1748624373612,0.52079996,103800.0,103790.0,0.74446979]
[1748624373819,0.53043368,103800.0,103790.0,0.73483561]
[1748624374019,0.53043368,103800.0,103790.0,0.74446979]
[1748624374220,0.53043359,103800.0,103790.0,0.73483561]
[1748624374431,0.52079996,103800.0,103790.0,0.74446979]
[1748624374636,0.53003651,103800.0,103790.0,0.70353561]
[1748624374842,0.53003651,103800.0,103790.0,0.71316979]
[1748624375197,0.70344831,103800.0,103790.0,0.44983515]
[1748624375625,0.70344831,103800.0,103790.0,0.45946998]
[1748624375827,0.70344831,103800.0,103790.0,0.44983515]
[1748624376486,0.70344831,103800.0,103780.0,0.08086073]
[1748624376487,0.20233144,103790.0,103780.0,0.08086073]
[1748624376689,0.61379144,103790.0,103780.0,0.17671503]
[1748624377257,0.61379144,103790.0,103780.0,0.51671503]
[1748624377661,0.61379144,103790.0,103780.0,0.51771503]
[1748624378776,0.54869144,103790.0,103780.0,0.51771503]
[1748624379150,0.00963465,103790.0,103780.0,0.72497123]
[1748624379357,0.33587465,103790.0,103780.0,0.75387768]
[1748624379712,0.56780074,103790.0,103780.0,0.72337904]
[1748624379878,0.35583428,103790.0,103780.0,0.72337904]
[1748624380082,0.03853739,103790.0,103780.0,0.76451415]
[1748624380291,0.02890274,103790.0,103780.0,0.76451415]
[1748624380528,0.03853739,103790.0,103780.0,0.79501297]
[1748624380719,0.03853739,103790.0,103780.0,0.79501316]
[1748624380920,0.24086892,103790.0,103780.0,0.77574247]
[1748624381122,0.29739088,103790.0,103780.0,0.53225588]
[1748624381323,0.21196636,103790.0,103780.0,0.53225588]
[1748624381525,0.21196636,103790.0,103780.0,0.54189164]
[1748624381728,0.21196636,103790.0,103780.0,0.52078071]
[1748624381957,0.21196636,103790.0,103780.0,0.70386039]
[1748624382322,0.21196636,103790.0,103780.0,0.71349606]
[1748624382741,0.21196636,103790.0,103780.0,0.72313154]
[1748624383169,0.01926864,103790.0,103780.0,0.73276684]
[1748624383343,0.01926855,103790.0,103780.0,0.74240195]
[1748624383551,0.02890311,103790.0,103780.0,0.77260195]
[1748624383747,0.01926855,103790.0,103780.0,0.77260195]
[1748624383944,0.02890301,103790.0,103780.0,0.77260195]
[1748624384147,0.03853775,103790.0,103780.0,0.79346566]
[1748624384550,0.03853775,103790.0,103780.0,0.5622081]
[1748624384753,0.03853775,103790.0,103780.0,0.5320081]
[1748624385386,0.23123454,103790.0,103780.0,0.54164386]
[1748624385614,0.22160036,103790.0,103780.0,0.73435921]
[1748624385817,0.22160036,103790.0,103780.0,0.77509488]
[1748624386028,0.49913664,103800.0,103790.0,0.55687229]
[1748624386237,0.50877018,103800.0,103790.0,0.69346105]
[1748624386454,0.50877018,103800.0,103790.0,0.70309543]
[1748624386661,0.49913609,103800.0,103790.0,0.71272961]
[1748624386882,0.50876906,103800.0,103790.0,0.71272979]
[1748624387094,0.52803604,103800.0,103790.0,0.70309561]
[1748624387336,0.52803604,103800.0,103790.0,0.71272989]
[1748624387550,0.52903604,103800.0,103790.0,0.72236407]
[1748624387760,0.7024484,103800.0,103790.0,0.45039515]
[1748624388004,0.69281477,103800.0,103790.0,0.45039515]
[1748624388230,0.75821477,103800.0,103790.0,0.43616333]
[1748624388457,1.31356952,103800.0,103790.0,0.43616333]
[1748624388694,1.31456952,103800.0,103790.0,0.43616333]
[1748624389149,0.75921477,103800.0,103790.0,0.43616333]
[1748624391554,0.72611477,103800.0,103790.0,0.43616333]
[1748624391764,0.71648105,103800.0,103790.0,0.43616333]
[1748624392423,0.74928105,103800.0,103790.0,0.43616333]
[1748624392836,0.71648105,103800.0,103790.0,0.43616333]
[1748624396061,1.07850766,103820.0,103810.0,0.45123845]
[1748624396493,1.07846766,103820.0,103810.0,0.45123845]
[1748624396705,1.08246766,103820.0,103810.0,0.45123845]
[1748624396914,0.73710766,103820.0,103810.0,0.4358543]
[1748624397172,1.08442766,103820.0,103810.0,0.4358543]
[1748624397610,1.08242766,103820.0,103810.0,0.4358543]
[1748624397818,0.51276591,103820.0,103810.0,0.66232031]
[1748624398026,0.51276591,103820.0,103810.0,0.70275264]
[1748624398027,0.51676545,103820.0,103810.0,0.70275264]
[1748624398454,0.49750283,103820.0,103810.0,0.73325146]
[1748624398675,0.004,103820.0,103810.0,1.66644621]
[1748624399310,0.56674142,103840.0,103830.0,0.566425]
[1748624399514,0.01925919,103840.0,103830.0,0.65264864]
[1748624399767,0.2214932,103840.0,103830.0,0.65264864]
[1748624399998,0.01925919,103840.0,103830.0,0.65264864]
[1748624400266,1.1356505,103850.0,103840.0,0.35454085]
[1748624400267,0.7579505,103850.0,103840.0,0.35454085]
[1748624400514,0.7579505,103850.0,103840.0,0.65262935]
[1748624400515,0.71097507,103850.0,103840.0,0.65262935]
[1748624400762,0.20270403,103850.0,103840.0,0.45039515]
[1748624401000,0.89714865,103850.0,103840.0,0.4358543]
[1748624401228,0.89714865,103850.0,103830.0,0.0306874]
[1748624401229,0.27518415,103830.0,103820.0,0.0306874]
[1748624401440,1.46790307,103830.0,103820.0,0.0306874]
[1748624401678,1.46790307,103830.0,103820.0,0.02701531]
[1748624401914,0.27552496,103810.0,103800.0,0.01151128]
[1748624402154,1.17591971,103810.0,103800.0,0.01151128]
[1748624402400,0.62056496,103810.0,103800.0,0.01151128]
[1748624402856,1.17591971,103810.0,103800.0,0.01151128]
[1748624403076,0.20231194,103800.0,103790.0,0.01182031]
[1748624403298,0.26501194,103800.0,103790.0,0.01182031]
[1748624403511,0.82036669,103800.0,103790.0,0.01151128]
[1748624403784,0.94100669,103800.0,103790.0,0.01151128]
[1748624403993,0.38565194,103800.0,103790.0,0.01151128]
[1748624404222,0.38555194,103800.0,103790.0,0.01151128]
[1748624404449,0.001,103800.0,103790.0,0.68680322]
[1748624404678,0.1926578,103820.0,103810.0,0.5986661]
[1748624404679,0.00963186,103820.0,103810.0,0.5986661]
[1748624404933,0.21190418,103820.0,103810.0,0.6848877]
[1748624405150,0.21190474,103820.0,103810.0,0.48259515]
[1748624405374,0.20227306,103820.0,103810.0,0.45039515]
[1748624405601,0.0096314,103820.0,103810.0,0.68115893]
[1748624405825,0.22153595,103820.0,103810.0,0.71626102]
[1748624406076,0.03089495,103820.0,103810.0,0.7130593]
[1748624406313,0.03089467,103820.0,103810.0,0.72269173]
[1748624406521,0.004,103820.0,103810.0,0.72269173]
[1748624406744,0.004,103820.0,103810.0,0.75469173]
[1748624407177,0.004,103820.0,103810.0,1.65484648]
[1748624407399,0.01062853,103850.0,103840.0,0.57603432]
[1748624407606,0.01062853,103850.0,103840.0,0.73618862]
[1748624407607,0.00114671,103850.0,103840.0,0.73618862]
[1748624407808,0.01077524,103850.0,103840.0,0.73618862]
[1748624408274,0.00114671,103850.0,103840.0,0.74539483]
[1748624408929,0.21299004,103850.0,103840.0,0.83710536]
[1748624409137,0.02040459,103850.0,103840.0,0.66183556]
[1748624409343,0.21299004,103850.0,103840.0,0.67146566]
[1748624409561,1.00004588,103850.0,103840.0,0.00920621]
[1748624409776,1.25213466,103850.0,103840.0,0.00920621]
[1748624409992,0.36500459,103850.0,103840.0,0.30929461]
[1748624410245,0.21299004,103850.0,103840.0,0.31892481]
[1748624410466,0.03003321,103850.0,103840.0,0.36419701]
[1748624410668,0.03966239,103850.0,103840.0,0.39379701]
[1748624410879,0.22261922,103850.0,103840.0,0.34393755]
[1748624411115,0.76704033,103850.0,103840.0,0.01020621]
[1748624411345,0.8752302,103850.0,103840.0,0.01020621]
[1748624411623,0.9076302,103850.0,103840.0,0.01020621]
[1748624412090,0.27948558,103850.0,103840.0,0.01020621]
[1748624412307,0.83484033,103850.0,103840.0,0.01020621]
[1748624412535,0.91054206,103850.0,103840.0,0.001]
[1748624412770,0.90954206,103850.0,103840.0,0.001]
[1748624413022,0.20223401,103840.0,103830.0,0.01146809]
[1748624413252,0.21190455,103820.0,103810.0,0.00920621]
[1748624413476,0.20231194,103800.0,103790.0,0.00030904]
[1748624413698,0.01926735,103800.0,103790.0,0.62886013]
[1748624413935,0.6576411,103820.0,103790.0,0.62886013]
[1748624413936,0.01926364,103820.0,103810.0,0.56155804]
[1748624414158,0.20227028,103830.0,103820.0,0.01454085]
[1748624414375,0.02889189,103830.0,103820.0,0.32230007]
[1748624414588,0.00963057,103830.0,103820.0,0.31266821]
[1748624414808,0.22151407,103830.0,103820.0,0.6716245]
[1748624415043,0.21188415,103830.0,103820.0,0.45971958]
[1748624415256,0.20225349,103830.0,103820.0,0.45971958]
[1748624415466,0.75760824,103830.0,103820.0,0.34932443]
[1748624415899,0.82030824,103830.0,103820.0,0.00932443]
[1748624416548,0.23245349,103830.0,103820.0,0.00932443]
[1748624416818,0.20114649,103830.0,103820.0,0.00932443]
[1748624417235,0.20214649,103830.0,103820.0,0.02386528]
[1748624417445,0.20214649,103830.0,103820.0,0.32199273]
[1748624417657,0.20214649,103830.0,103820.0,0.11971958]
[1748624417873,0.19251555,103830.0,103820.0,0.11971958]
[1748624418336,0.7478703,103830.0,103820.0,0.00932443]
[1748624418540,0.19251555,103830.0,103820.0,0.00932443]
[1748624418754,0.97967139,103830.0,103820.0,0.00932443]
[1748624418972,1.09935139,103830.0,103820.0,0.00932443]
[1748624419179,1.35204017,103830.0,103820.0,0.00932443]
[1748624419408,1.2762503,103830.0,103820.0,0.00932443]
[1748624419614,0.72089555,103830.0,103820.0,0.00932443]
[1748624419822,0.72089555,103830.0,103820.0,0.00963346]
[1748624420030,0.68909555,103830.0,103820.0,0.00963346]
[1748624420237,1.2444503,103830.0,103820.0,0.00963346]
[1748624420662,0.19351555,103830.0,103820.0,0.00963346]
[1748624420875,0.53763555,103830.0,103820.0,0.31266971]
[1748624421093,0.19351555,103830.0,103820.0,0.12002861]
[1748624421523,0.7488703,103830.0,103820.0,0.00963346]
[1748624421735,1.1254903,103830.0,103820.0,0.00963346]
[1748624421987,1.0929903,103830.0,103820.0,0.00687676]
[1748624422420,1.1547903,103830.0,103820.0,0.00687676]
[1748624423543,1.41894569,103830.0,103820.0,0.00687676]
[1748624423753,1.46894569,103830.0,103820.0,0.00102836]
[1748624424183,1.41894569,103830.0,103820.0,0.00102836]
[1748624424638,1.34215582,103830.0,103820.0,0.00045574]
[1748624424842,0.59731555,103830.0,103820.0,0.00045574]
[1748624425052,1.1526703,103830.0,103820.0,0.00045574]
[1748624425270,1.1546703,103830.0,103820.0,0.00045574]
[1748624425685,0.59731555,103830.0,103820.0,0.00045574]
[1748624425939,1.28983187,103830.0,103820.0,0.00045574]
[1748624426147,1.2595246,103830.0,103820.0,0.00045574]
[1748624426561,0.23237296,103820.0,103810.0,0.33995574]
[1748624426762,0.81962771,103820.0,103810.0,0.33995574]
[1748624426964,1.03520201,103820.0,103810.0,0.33995574]
[1748624427389,1.03520201,103820.0,103800.0,0.5]
[1748624427390,0.26699245,103810.0,103800.0,0.5]
[1748624427616,1.1662672,103810.0,103800.0,0.5]
[1748624428171,0.57811245,103810.0,103800.0,0.5]
[1748624428477,1.1015672,103810.0,103800.0,0.84]
[1748624428917,0.54621245,103810.0,103800.0,0.84]
[1748624429155,0.55784515,103810.0,103800.0,0.84]
[1748624429512,0.21392515,103810.0,103800.0,0.84]
[1748624429900,0.21692515,103810.0,103800.0,0.84]
[1748624430955,0.7702799,103810.0,103800.0,0.84]
[1748624431543,0.8342799,103810.0,103800.0,0.84]
[1748624431743,0.92679112,103810.0,103800.0,0.84]
[1748624431933,0.8312799,103810.0,103800.0,0.84]
[1748624432310,0.8322799,103810.0,103800.0,0.84]
[1748624432663,0.79995383,103810.0,103800.0,0.84]
[1748624432875,0.80295383,103810.0,103800.0,0.84]
[1748624433072,0.80295383,103810.0,103800.0,1.18340709]
[1748624433073,0.22443206,103810.0,103800.0,1.18340709]
[1748624433280,0.22443206,103810.0,103800.0,1.17377337]
[1748624433523,0.22443206,103810.0,103800.0,1.18340718]
[1748624433932,0.21479936,103810.0,103800.0,1.18340728]
[1748624434142,0.21479936,103810.0,103800.0,1.19871384]
[1748624434344,0.03177221,103810.0,103800.0,1.24818091]
[1748624434545,0.21479936,103810.0,103800.0,1.02660171]
[1748624434746,0.20729264,103810.0,103800.0,0.99640171]
[1748624434958,0.20729264,103810.0,103800.0,1.19871374]
[1748624435160,0.003,103810.0,103800.0,1.18907993]
[1748624435375,0.97486862,103840.0,103830.0,0.34]
[1748624435376,0.192604,103840.0,103830.0,0.34]
[1748624435582,0.192604,103840.0,103830.0,0.7136407]
[1748624435583,0.01925955,103840.0,103830.0,0.7136407]
[1748624435788,0.26840732,103860.0,103840.0,0.561493]
[1748624435789,0.27803566,103860.0,103840.0,0.561493]
[1748624436016,0.0192564,103860.0,103850.0,0.55184333]
[1748624436227,0.21197026,103860.0,103850.0,0.66223895]
[1748624436428,0.21197026,103860.0,103850.0,0.45039515]
[1748624436637,0.2023422,103860.0,103850.0,0.45039515]
[1748624436852,0.2023422,103860.0,103850.0,0.47906209]
[1748624437062,0.2023422,103860.0,103850.0,0.46943282]
[1748624437275,0.2063422,103860.0,103850.0,0.67164745]
[1748624437486,0.2063422,103860.0,103850.0,0.49390154]
[1748624437686,0.2023422,103860.0,103850.0,0.49390154]
[1748624438101,0.2043422,103860.0,103850.0,0.49390154]
[1748624438316,0.83548682,103860.0,103850.0,0.36446872]
[1748624438551,0.86638682,103860.0,103850.0,0.36446872]
[1748624438736,0.28013207,103860.0,103850.0,0.36446872]
[1748624438943,0.2053422,103860.0,103850.0,0.66744932]
[1748624439352,0.2053422,103860.0,103850.0,0.74374307]
[1748624439353,0.00314695,103860.0,103850.0,0.74374307]
[1748624439562,0.00314695,103860.0,103850.0,1.29909782]
[1748624440190,0.00214695,103860.0,103850.0,1.29909782]
[1748624440397,0.00014695,103860.0,103850.0,1.29909782]
[1748624440608,0.02888039,103870.0,103860.0,0.62866398]
[1748624440830,0.03850753,103870.0,103860.0,0.85382597]
[1748624441046,0.03850753,103870.0,103860.0,0.73414597]
[1748624441250,0.23105673,103870.0,103860.0,0.82494206]
[1748624441450,0.03850818,103870.0,103860.0,0.8317022]
[1748624441860,0.00962602,103880.0,103870.0,0.57597063]
[1748624442064,0.53595474,103890.0,103880.0,0.01454085]
[1748624442274,0.19263474,103890.0,103880.0,0.11039515]
[1748624442483,0.21176197,103890.0,103880.0,0.45039515]
[1748624442743,0.20213678,103890.0,103880.0,0.45039515]
[1748624443122,0.82079153,103890.0,103880.0,0.36444506]
[1748624444060,0.82079153,103890.0,103880.0,0.34]
[1748624444521,0.20213678,103890.0,103880.0,0.34]
[1748624444986,0.20213678,103890.0,103880.0,0.3491489]
[1748624445417,0.75749153,103890.0,103880.0,0.3491489]
[1748624445859,0.75949153,103890.0,103880.0,0.3491489]
[1748624446517,0.20413678,103890.0,103880.0,0.3491489]
[1748624446767,0.21376197,103890.0,103880.0,0.45954405]
[1748624446984,0.03287575,103890.0,103880.0,0.46917054]
[1748624447221,0.04250039,103890.0,103880.0,0.71315261]
[1748624447423,0.03287519,103890.0,103880.0,0.71315252]
[1748624447629,0.04250057,103890.0,103880.0,0.87179836]
[1748624447853,0.22538697,103890.0,103880.0,0.86167271]
[1748624448071,0.03287501,103890.0,103880.0,0.88656784]
[1748624448272,0.02324973,103890.0,103880.0,0.88656784]
[1748624448537,0.02324973,103890.0,103880.0,0.87129855]
[1748624448740,0.004,103890.0,103880.0,0.87129855]
[1748624448955,0.02324973,103890.0,103880.0,0.74275271]
[1748624449143,0.02324973,103890.0,103880.0,0.83681541]
[1748624449144,0.02325019,103890.0,103880.0,0.83681541]
[1748624449342,0.004,103890.0,103880.0,0.87944153]
[1748624449723,0.004,103890.0,103880.0,1.31587628]
[1748624449942,0.004,103890.0,103880.0,2.34867428]
[1748624450554,0.004,103890.0,103880.0,5.25964703]
[1748624450758,0.004,103890.0,103880.0,5.24437774]
[1748624450959,0.02886668,103920.0,103910.0,0.60688512]
[1748624451169,0.0389795,103920.0,103910.0,0.81203636]
[1748624451347,0.22181374,103920.0,103910.0,0.80241302]
[1748624451544,0.23143652,103920.0,103910.0,0.80028293]
[1748624451837,0.23143652,103920.0,103910.0,0.79065988]
[1748624452045,0.01011217,103920.0,103910.0,0.86348294]
[1748624452221,0.00049022,103920.0,103910.0,0.87263184]
[1748624452479,0.00049022,103920.0,103910.0,1.42798659]
[1748624453111,0.00049022,103920.0,103910.0,1.44317152]
[1748624453543,0.00049022,103920.0,103910.0,0.46018813]
[1748624453745,0.20256855,103920.0,103910.0,0.46018813]
[1748624454001,0.20256855,103920.0,103910.0,0.67682675]
[1748624454216,0.20256855,103920.0,103910.0,0.69632134]
[1748624454429,0.20256855,103920.0,103910.0,0.49422357]
[1748624454648,0.7483007,103920.0,103910.0,0.0091489]
[1748624454896,0.8119007,103920.0,103910.0,0.0091489]
[1748624455311,0.22136529,103900.0,103890.0,0.57100943]
[1748624455529,0.2117414,103900.0,103890.0,0.29799117]
[1748624455734,0.2117414,103900.0,103890.0,0.2979908]
[1748624455950,0.2117414,103900.0,103890.0,0.66634709]
[1748624456196,0.20211723,103900.0,103890.0,0.10495965]
[1748624456410,0.20111723,103900.0,103890.0,0.64709634]
[1748624456629,0.20111723,103900.0,103890.0,0.66163719]
[1748624456787,0.19249278,103900.0,103890.0,0.4595005]
[1748624457096,0.19249278,103900.0,103890.0,0.01610535]
[1748624457097,0.8503458,103900.0,103890.0,0.01610535]
[1748624457316,0.81184753,103900.0,103890.0,0.01210535]
[1748624457487,1.02658183,103900.0,103890.0,0.00910535]
[1748624457882,0.26603669,103890.0,103880.0,0.001]
[1748624458059,1.25676574,103890.0,103880.0,0.001]
[1748624458250,1.27066777,103890.0,103880.0,0.001]
[1748624458707,1.25014036,103890.0,103880.0,0.001]
[1748624458921,1.25976574,103890.0,103880.0,0.001]
[1748624459258,0.26603669,103890.0,103880.0,0.001]
[1748624459586,0.61247669,103890.0,103880.0,0.001]
[1748624460172,1.21524652,103890.0,103880.0,0.001]
[1748624460369,1.40361204,103890.0,103880.0,0.001]
[1748624461237,1.31110082,103890.0,103880.0,0.001]
[1748624461447,0.71133099,103890.0,103880.0,0.001]
[1748624461658,0.61543669,103890.0,103880.0,0.001]
[1748624461860,1.21520652,103890.0,103880.0,0.001]
[1748624462232,0.61543669,103890.0,103880.0,0.001]
[1748624462696,0.61543669,103890.0,103880.0,0.01014469]
[1748624462902,0.56473669,103890.0,103880.0,0.01014469]
[1748624463109,0.53403669,103890.0,103880.0,0.01014469]
[1748624463325,0.53403669,103890.0,103880.0,0.59572022]
[1748624463326,0.2987,103890.0,103880.0,0.59572022]
[1748624463544,0.2987,103890.0,103880.0,1.29134435]
[1748624463821,0.007,103890.0,103880.0,1.35754435]
[1748624464256,0.007,103890.0,103880.0,1.69990435]
[1748624464462,0.02886992,103910.0,103900.0,0.22136585]
[1748624464673,0.22134417,103910.0,103900.0,0.47857893]
[1748624464877,0.21172111,103910.0,103900.0,0.44499899]
[1748624465110,0.21172111,103910.0,103900.0,0.34914469]
[1748624465531,0.21172111,103910.0,103900.0,0.37331017]
[1748624465762,0.21172111,103910.0,103900.0,0.45953984]
[1748624465961,0.0212463,103910.0,103900.0,1.27105125]
[1748624466133,0.23296769,103910.0,103900.0,0.68090578]
[1748624466321,0.23596769,103910.0,103900.0,0.68090578]
[1748624466518,0.005,103910.0,103900.0,1.3216996]
[1748624466722,0.00049022,103920.0,103910.0,0.57588512]
[1748624466919,0.01011226,103920.0,103910.0,1.30290925]
[1748624467142,0.23143541,103920.0,103910.0,0.6742694]
[1748624467486,0.00049022,103920.0,103910.0,0.67173942]
[1748624467719,0.00962102,103930.0,103920.0,0.56132296]
[1748624467921,0.03863208,103930.0,103920.0,1.37582709]
[1748624468131,0.0290105,103930.0,103920.0,1.38497178]
[1748624468338,0.03863208,103930.0,103920.0,1.38497178]
[1748624468764,0.00976809,103930.0,103920.0,1.41767178]
[1748624468992,0.01938948,103930.0,103920.0,1.41867178]
[1748624469192,0.02901115,103930.0,103920.0,1.41867178]
[1748624469405,0.02901106,103930.0,103920.0,1.45125337]
[1748624469612,0.00014697,103930.0,103920.0,1.45125337]
[1748624470638,0.00014697,103930.0,103920.0,1.42067178]
[1748624471529,0.00014697,103930.0,103920.0,1.76271178]
[1748624471753,0.01924047,103940.0,103930.0,0.57584252]
[1748624471972,0.00962019,103940.0,103930.0,0.67169682]
[1748624472192,0.01924066,103940.0,103930.0,0.67169682]
[1748624472406,0.02886121,103940.0,103930.0,0.68084151]
[1748624472615,0.01924056,103940.0,103930.0,0.68084151]
[1748624473045,0.00961963,103950.0,103940.0,0.22128065]
[1748624473278,0.0288589,103950.0,103940.0,0.55166028]
[1748624473480,0.0288589,103950.0,103940.0,0.60674055]
[1748624473691,0.22125909,103950.0,103940.0,0.69789495]
[1748624473967,0.22125909,103950.0,103940.0,0.69789514]
[1748624474198,0.23087909,103950.0,103940.0,0.69607506]
[1748624474423,0.03847872,103950.0,103940.0,1.30546536]
[1748624474639,0.00961936,103950.0,103940.0,1.30546517]
[1748624474861,0.02885825,103950.0,103940.0,1.30546526]
[1748624475082,0.00961917,103950.0,103940.0,1.31508554]
[1748624475307,0.02885797,103950.0,103940.0,1.30546536]
[1748624475527,0.23087789,103950.0,103940.0,1.29983154]
[1748624475748,0.23087872,103950.0,103940.0,1.28059089]
[1748624475964,0.21163992,103950.0,103940.0,0.45953984]
[1748624476195,0.21163992,103950.0,103940.0,0.34914469]
[1748624476420,0.21163992,103950.0,103940.0,0.36058284]
[1748624476661,0.21163992,103950.0,103940.0,0.38286086]
[1748624477350,0.24443992,103950.0,103940.0,0.38286086]
[1748624477610,0.66458917,103950.0,103940.0,0.02058284]
[1748624477823,0.76044347,103950.0,103940.0,0.02058284]
[1748624478302,0.26503945,103940.0,103930.0,0.01143815]
[1748624478515,0.23373945,103940.0,103930.0,0.01143815]
[1748624478728,0.54375945,103940.0,103930.0,0.37431416]
[1748624478985,0.54375945,103940.0,103930.0,0.38885501]
[1748624479438,0.54375945,103940.0,103930.0,0.41425173]
[1748624479698,0.54375945,103940.0,103930.0,0.07425173]
[1748624480361,0.54375945,103940.0,103930.0,0.0589997]
[1748624480568,0.20166272,103940.0,103930.0,0.0589997]
[1748624480769,0.20166272,103940.0,103930.0,0.06381358]
[1748624480996,0.26446272,103940.0,103930.0,0.04927273]
[1748624481206,0.23236272,103940.0,103930.0,0.01114469]
[1748624481412,0.54330272,103940.0,103930.0,0.36568554]
[1748624481627,0.22090421,103940.0,103930.0,0.69991321]
[1748624481857,0.19240019,103950.0,103930.0,0.69991321]
[1748624481858,0.00961973,103950.0,103940.0,0.22620132]
[1748624482081,0.22125946,103950.0,103940.0,0.45039515]
[1748624482307,0.21163992,103950.0,103940.0,0.47479187]
[1748624482532,0.21163992,103950.0,103940.0,0.68645215]
[1748624482787,0.01923918,103950.0,103940.0,0.70569318]
[1748624483031,0.22125937,103950.0,103940.0,0.67120012]
[1748624483237,0.22125937,103950.0,103940.0,0.67120022]
[1748624483441,0.22125937,103950.0,103940.0,0.69044143]
[1748624483645,0.21163992,103950.0,103940.0,0.66157947]
[1748624483852,0.21163992,103950.0,103940.0,0.67120022]
[1748624484051,0.21163992,103950.0,103940.0,0.68082087]
[1748624484187,0.21163992,103950.0,103940.0,0.45953984]
[1748624484411,0.20202019,103950.0,103940.0,0.45953984]
[1748624484817,0.01923918,103950.0,103940.0,0.68644411]
[1748624485019,0.01923862,103950.0,103940.0,0.69606439]
[1748624485202,0.00961917,103950.0,103940.0,1.25114157]
[1748624485613,0.01923853,103950.0,103940.0,0.69606439]
[1748624485816,0.02885816,103950.0,103940.0,0.68082022]
[1748624486040,0.01923853,103950.0,103940.0,0.68082022]
[1748624486246,0.00961917,103950.0,103940.0,0.68082022]
[1748624486650,0.02885585,103960.0,103950.0,0.58541958]
[1748624486883,0.02885566,103960.0,103950.0,0.68127406]
[1748624487083,0.23979116,103960.0,103950.0,0.69603664]
[1748624487283,0.23979116,103960.0,103950.0,0.70565618]
[1748624487511,0.23085679,103960.0,103950.0,0.69603664]
[1748624487784,0.22123827,103960.0,103950.0,0.69603664]
[1748624488019,0.22323827,103960.0,103950.0,0.70565618]
[1748624488215,0.22323827,103960.0,103950.0,0.69603664]
[1748624488412,0.03085659,103960.0,103950.0,0.69603664]
[1748624488617,0.01161825,103960.0,103950.0,1.26073318]
[1748624488821,0.02123677,103960.0,103950.0,1.29333318]
[1748624489228,0.04047437,103960.0,103950.0,1.29333318]
[1748624489434,0.24247587,103960.0,103950.0,0.68079939]
[1748624489771,0.05009419,103960.0,103950.0,0.69041884]
[1748624489932,0.24247587,103960.0,103950.0,0.69141884]
[1748624490137,0.24047587,103960.0,103950.0,0.70103838]
[1748624490355,0.21161975,103960.0,103950.0,0.47015975]
[1748624490551,0.21161975,103960.0,103950.0,0.35114469]
[1748624490750,0.23159912,103970.0,103960.0,0.23577893]
[1748624490948,0.24136358,103970.0,103960.0,0.31239591]
[1748624491153,0.23174598,103970.0,103960.0,0.14623557]
[1748624491553,0.24136413,103970.0,103960.0,0.69785513]
[1748624491960,0.04899966,103970.0,103960.0,0.71709208]
[1748624492184,0.25098081,103970.0,103960.0,0.70565143]
[1748624492388,0.26059887,103970.0,103960.0,0.70565143]
[1748624492602,0.25098155,103970.0,103960.0,0.36439939]
[1748624492829,0.63564607,103970.0,103960.0,0.34914469]
[1748624493474,0.29444607,103970.0,103960.0,0.34914469]
[1748624493696,0.26234607,103970.0,103960.0,0.36794638]
[1748624493927,0.23174607,103970.0,103960.0,0.56032806]